bitfinex-derivatives/quotes_ETHF0:USTF0_20260104
["timestamp","ask_amount","ask_price","bid_price","bid_amount"]
[1767558259970,0.1316718,3139.3,3137.7,0.29201939]
[1767558261963,0.15933,3139.4,3137.8,0.13823324]
[1767558265374,0.29597879,3139.4,3137.8,0.13823324]
[1767558270274,0.29597879,3139.4,3137.8,0.29764324]
[1767558272478,0.29597879,3139.4,3138.2,0.78795893]
[1767558272674,0.29597879,3139.4,3138.3,4.922]
[1767558274483,0.13624927,3139.3,3138.3,4.922]
[1767558291289,0.13624927,3139.3,3137.8,0.15941]
[1767558291482,0.13624927,3139.3,3137.9,5.71195893]
[1767558300694,0.13624927,3139.3,3137.8,0.15941]
[1767558300900,0.13624927,3139.3,3138.0,4.931]
[1767558303601,0.13624927,3139.3,3138.0,5.71895893]
[1767558323217,0.14368945,3139.7,3138.1,0.1594]
[1767558323413,0.544299,3140.1,3138.0,5.71895893]
[1767558323414,0.1593,3140.0,3138.9,0.78795893]
[1767558324112,0.68798845,3140.1,3138.9,0.78795893]
[1767558327821,0.544299,3140.1,3138.9,0.78795893]
[1767558331121,0.14368945,3140.5,3138.9,6.92852226]
[1767558331320,0.14368945,3140.5,3138.9,0.92852226]
[1767558332322,0.78795893,3140.4,3138.9,0.92852226]
[1767558332726,0.14368945,3140.5,3139.2,0.78795893]
[1767558333029,0.14368945,3140.5,3139.2,0.79037714]
[1767558334228,0.00301785,3140.7,3139.2,0.79037714]
[1767558334629,0.00301785,3140.7,3139.2,0.00241821]
[1767558335532,0.00301785,3140.7,3139.2,0.13841037]
[1767558337227,0.00301785,3140.7,3139.2,0.29775037]
[1767558337434,0.00301785,3140.7,3139.3,0.13599216]
[1767558340828,0.00301785,3140.7,3139.3,0.29533216]
[1767558341034,0.13309878,3141.3,3139.6,0.13599216]
[1767558341228,0.13309878,3141.3,3139.4,0.15933]
[1767558342132,0.13535021,3141.3,3139.4,0.15933]
[1767558343422,0.13309878,3141.1,3139.4,0.15933]
[1767558343619,0.13309878,3141.0,3139.2,0.00241821]
[1767558346933,0.13309878,3141.0,3139.2,0.13841037]
[1767558347640,0.13309878,3141.0,3139.3,0.15934]
[1767558347835,0.13309878,3141.0,3139.3,0.29533216]
[1767558348231,0.13309878,3141.0,3139.5,0.13599216]
[1767558352534,0.13309878,3141.0,3139.4,0.15933]
[1767558374958,0.13309878,3141.0,3139.5,4.965]
[1767558392666,0.29234878,3141.0,3139.5,4.965]
[1767558392869,0.14368717,3140.9,3139.5,4.965]
[1767558393069,0.14368717,3140.9,3139.2,0.00241821]
[1767558393365,0.14368717,3140.9,3139.3,4.979]
[1767558394562,0.14073305,3140.8,3139.3,4.979]
[1767558399465,0.14073305,3140.8,3139.5,0.78744924]
[1767558419784,0.78744924,3140.3,3139.2,0.00241821]
[1767558419992,0.92818229,3140.3,3139.2,0.00241821]
[1767558421291,0.14073305,3140.3,3139.2,0.00241821]
[1767558421482,0.78744924,3140.6,3139.2,0.00241821]
[1767558421684,0.92863389,3140.6,3139.2,0.00241821]
[1767558424985,0.14118465,3140.5,3139.2,0.00241821]
[1767558433493,0.15927,3140.7,3139.5,0.78744924]
[1767558433797,0.14118465,3140.6,3139.5,0.78744924]
[1767558433994,0.14118465,3140.6,3139.2,0.78986745]
[1767558440000,0.14118465,3141.2,3139.3,0.14106833]
[1767558440206,0.14118465,3141.2,3140.0,0.78744924]
[1767558440795,0.14118465,3141.2,3139.7,0.78744924]
[1767558445911,0.14118465,3141.1,3139.7,0.78744924]
[1767558451613,0.14118465,3141.1,3139.4,0.30039833]
[1767558451815,0.14118465,3141.1,3139.7,0.78744924]
[1767558454515,0.14118465,3141.1,3139.4,0.30039833]
[1767558462117,0.14118465,3141.1,3139.5,4.977]
[1767558468616,0.14118465,3141.1,3139.6,0.13969058]
[1767558470831,0.16149143,3141.3,3139.6,0.13969058]
[1767558471025,0.14309968,3141.2,3139.6,0.13969058]
[1767558472419,0.14309968,3141.2,3139.6,0.29901058]
[1767558479730,0.00225143,3141.3,3139.9,0.13969058]
[1767558479934,0.00225143,3141.3,3140.0,5.0]
[1767558480437,0.00225143,3141.3,3140.0,5.14119728]
[1767558481124,0.14173917,3141.3,3140.0,5.0]
[1767558481331,0.13948774,3141.2,3139.2,0.30295549]
[1767558481528,0.13948774,3141.2,3139.3,5.0]
[1767558481734,0.13948774,3141.2,3139.4,5.001]
[1767558483433,0.13948774,3141.0,3139.4,5.001]
[1767558495248,0.13948774,3141.0,3139.4,5.14219728]
[1767558496048,0.13948774,3141.0,3139.5,0.14119728]
[1767558496252,0.00225143,3141.3,3139.5,0.14119728]
[1767558496555,0.00225143,3141.3,3139.6,0.14119728]
[1767558498559,0.00225143,3141.3,3139.8,0.14119728]
[1767558498757,0.00225143,3141.3,3139.9,5.028]
[1767558499261,0.00225143,3141.3,3139.9,5.16919728]
[1767558507260,0.00225143,3141.3,3140.0,0.14119728]
[1767558516474,0.00225143,3141.3,3140.2,0.78696951]
[1767558518574,0.00225143,3141.3,3140.0,0.14119728]
[1767558518767,0.00225143,3141.3,3140.2,0.78696951]
[1767558524278,0.00225143,3141.3,3140.2,0.92264465]
[1767558530577,0.00225143,3141.3,3140.2,0.78696951]
[1767558544182,0.00225143,3141.3,3140.2,0.91888605]
[1767558551389,0.00225143,3141.3,3140.3,0.13191654]
[1767558556101,0.00225143,3141.3,3140.2,0.78696951]
[1767558561301,0.00225143,3141.3,3139.9,5.31922654]
[1767558561604,0.00225143,3141.3,3139.9,6.10619605]
[1767558564302,0.00225143,3141.3,3140.0,0.13191654]
[1767558582918,0.13858195,3141.2,3139.6,5.81675908]
[1767558583121,0.13858195,3141.2,3139.7,5.041]
[1767558583423,0.13858195,3141.2,3139.6,10.85775908]
[1767558583722,0.13858195,3141.2,3139.6,5.17812846]
[1767558583916,0.13858195,3141.2,3139.7,0.13712846]
[1767558584226,0.16149143,3141.3,3139.7,0.13712846]
[1767558589027,0.30007338,3141.3,3139.7,0.13712846]
[1767558595732,0.13858195,3141.2,3139.7,0.13712846]
[1767558600536,0.13858195,3141.2,3139.8,5.095]
[1767558606835,0.13596664,3141.1,3139.4,5.67963062]
[1767558607039,0.13596664,3141.1,3139.2,0.75084511]
[1767558607040,0.13596664,3141.1,3139.5,5.106]
[1767558615158,0.13596664,3141.1,3139.6,0.13108484]
[1767558616155,0.00225143,3141.3,3139.7,0.13108484]
[1767558617153,0.00225143,3141.3,3139.9,0.13108484]
[1767558618351,0.00225143,3141.3,3140.0,0.13108484]
[1767558618551,0.00225143,3141.3,3140.1,5.24308484]
[1767558623657,0.00225143,3141.3,3140.1,5.112]
[1767558631054,0.14022151,3141.3,3139.7,0.13108484]
[1767558631254,0.14022151,3141.3,3139.8,5.114]
[1767558631553,0.13797008,3141.2,3139.5,0.15932]
[1767558631852,0.13797008,3141.2,3139.6,5.114]
[1767558632852,0.5,3140.8,3139.6,5.114]
[1767558635346,0.5,3140.8,3139.3,0.13645553]
[1767558635658,0.64112349,3140.8,3139.4,5.119]
[1767558637457,0.14112349,3140.7,3139.4,5.119]
[1767558642461,0.14112349,3140.7,3139.2,1.53830579]
[1767558642462,6.14112349,3140.7,3139.2,0.75084511]
[1767558642759,0.78746068,3140.0,3139.2,0.00241821]
[1767558642947,0.14112349,3139.9,3138.4,12.55606352]
[1767558643151,0.78746068,3139.7,3138.4,12.55606352]
[1767558643360,0.78746068,3139.7,3138.4,5.13]
[1767558644153,0.78746068,3139.7,3138.4,5.13380171]
[1767558644458,0.14112349,3139.9,3138.4,5.13380171]
[1767558648163,0.92858417,3139.7,3138.4,5.13380171]
[1767558651661,0.14112349,3139.7,3138.4,5.13380171]
[1767558651868,5.15476068,3140.0,3138.4,6.05922779]
[1767558652265,5.29588417,3140.0,3138.4,6.05922779]
[1767558653268,0.14112349,3139.9,3138.4,6.05922779]
[1767558653465,0.14112349,3139.9,3138.4,5.27176711]
[1767558653866,0.78746068,3139.7,3138.4,5.27176711]
[1767558654469,0.78746068,3139.8,3138.4,5.27176711]
[1767558656472,0.78746068,3139.8,3138.5,0.1379654]
[1767558660172,0.78746068,3139.8,3138.4,5.13380171]
[1767558660470,0.92013769,3139.8,3138.4,5.13380171]
[1767558662073,0.13267701,3139.7,3138.4,0.00380171]
[1767558662271,0.78746068,3139.2,3138.4,0.00380171]
[1767558664876,0.13267701,3139.2,3138.4,0.00380171]
[1767558665173,4.21,3139.5,3138.4,0.00380171]
[1767558665369,0.29199701,3139.6,3138.4,0.00380171]
[1767558665571,4.50199701,3139.6,3138.4,0.00380171]
[1767558666776,0.92013769,3139.5,3138.4,0.00380171]
[1767558668682,5.13113769,3139.5,3138.4,0.00380171]
[1767558670081,0.13267701,3139.4,3138.4,0.00380171]
[1767558673885,0.13267701,3139.1,3138.4,0.00380171]
[1767558674086,0.13634373,3139.1,3138.4,0.00380171]
[1767558675781,0.13634373,3139.1,3137.5,0.13905825]
[1767558676087,0.13634373,3139.1,3137.6,0.78746068]
[1767558676280,0.00366672,3139.1,3137.9,0.78746068]
[1767558676889,0.00366672,3139.1,3137.9,0.79071304]
[1767558677081,0.00366672,3139.1,3137.9,0.00325236]
[1767558681195,0.00366672,3139.1,3137.9,0.79071304]
[1767558681894,0.00366672,3139.1,3137.9,0.00325236]
[1767558705221,0.14085352,3139.1,3137.9,0.00325236]
[1767558720237,0.30020352,3139.1,3137.9,0.00325236]
[1767558720541,0.14130165,3139.0,3137.9,0.00325236]
[1767558722146,0.14130165,3138.9,3137.9,0.00325236]
[1767558722643,0.14130165,3138.6,3137.0,5.93427953]
[1767558722838,0.14130165,3138.6,3137.0,5.67963062]
[1767558723046,0.14130165,3138.6,3136.6,8.77278907]
[1767558723228,0.14130165,3138.6,3136.6,8.93225907]
[1767558723430,0.14130165,3138.6,3136.6,1.50619555]
[1767558723634,0.14130165,3138.6,3136.6,0.29834396]
[1767558724334,0.14130165,3138.6,3136.6,0.41196342]
[1767558724945,0.14130165,3138.6,3136.6,0.54769351]
[1767558727846,0.78814911,3139.0,3137.2,0.13573009]
[1767558727847,0.14130165,3139.0,3137.2,0.13573009]
[1767558730343,0.14130165,3139.0,3137.6,0.9238792]
[1767558731345,0.14130165,3139.0,3137.6,0.13573009]
[1767558752777,0.14130165,3139.0,3137.6,0.29515009]
[1767558758482,0.14130165,3139.0,3137.7,0.15942]
[1767558760687,0.14130165,3139.0,3138.0,0.78810273]
[1767558774790,0.00366672,3139.1,3138.0,0.78810273]
[1767558779396,0.00366672,3139.1,3138.6,0.78810273]
[1767558779699,0.00366672,3139.1,3138.3,0.78810273]
[1767558782797,1.06971286,3139.8,3138.6,0.78810273]
[1767558782798,0.14324763,3139.8,3138.6,0.78810273]
[1767558783695,0.14579708,3139.8,3138.6,0.78810273]
[1767558786999,0.00254945,3139.8,3138.9,0.78810273]
[1767558787305,0.00254945,3139.8,3138.9,0.00273967]
[1767558787813,0.00254945,3139.8,3138.9,0.7908424]
[1767558787998,0.00254945,3139.8,3139.2,0.78810273]
[1767558788305,0.00254945,3139.8,3138.9,0.7908424]
[1767558789112,0.00254945,3139.8,3138.9,0.00273967]
[1767558793410,0.00254945,3139.8,3138.9,0.7908424]
[1767558799219,0.15928,3140.5,3139.2,0.78810273]
[1767558800105,0.30544088,3140.5,3139.2,0.78810273]
[1767558806624,0.14324763,3140.4,3138.9,0.7908424]
[1767558806827,0.14324763,3140.3,3138.9,0.7908424]
[1767558814030,0.14324763,3140.3,3138.9,0.00273967]
[1767558862971,6.14324763,3140.3,3138.9,0.00273967]
[1767558863173,0.13896308,3140.2,3138.9,0.00273967]
[1767558872779,0.13749615,3140.0,3138.9,0.00273967]
[1767558872984,0.13749615,3139.7,3138.3,5.67963062]
[1767558873181,0.13749615,3139.5,3138.0,0.1594]
[1767558873386,0.13749615,3139.5,3137.5,5.67963062]
[1767558874088,0.13749615,3139.5,3137.5,5.68292943]
[1767558874291,0.13749615,3139.5,3137.5,11.68292943]
[1767558874881,0.13749615,3139.5,3137.5,6.00329881]
[1767558877286,0.13749615,3139.5,3137.5,6.16272881]
[1767558880493,0.13212682,3139.2,3137.6,0.78826584]
[1767558885200,0.13212682,3139.2,3137.9,0.78826584]
[1767558888700,0.29144682,3139.6,3138.2,0.78826584]
[1767558889396,1.07971266,3139.6,3138.2,0.78826584]
[1767558889599,0.13212682,3139.5,3138.2,0.78826584]
[1767558893707,0.13212682,3139.5,3138.0,5.083]
[1767558901914,0.15932,3139.6,3138.3,0.14056907]
[1767558902210,3.187,3140.2,3138.0,5.2424]
[1767558902211,0.14383068,3140.0,3138.4,0.78826584]
[1767558911017,0.14383068,3140.0,3138.4,0.92883491]
[1767558915017,0.1593,3140.1,3138.5,0.14056907]
[1767558915321,0.00291325,3140.5,3139.6,0.78826584]
[1767558915522,0.00291325,3140.5,3139.3,0.78826584]
[1767558916920,0.00291325,3140.5,3139.3,0.92883491]
[1767558922534,0.14674393,3140.5,3139.0,0.78826584]
[1767558926537,0.14674393,3140.5,3139.0,0.92883491]
[1767558934341,0.14674393,3140.5,3139.1,0.13190359]
[1767558939148,0.14674393,3140.5,3139.3,0.78826584]
[1767558939345,0.00291325,3140.5,3139.3,0.78826584]
[1767558940957,0.00291325,3140.5,3139.3,0.92369845]
[1767558942564,0.00291325,3140.5,3139.3,0.13543261]
[1767558944758,0.00291325,3140.5,3139.4,0.13543261]
[1767558944967,0.73851067,3141.0,3139.5,0.13543261]
[1767558945968,0.74112972,3141.0,3139.5,0.13543261]
[1767558946361,0.74112972,3141.0,3139.5,0.29476261]
[1767558946957,0.00261905,3141.0,3139.6,0.15932]
[1767558947155,0.00261905,3141.0,3139.7,0.13543261]
[1767558947356,0.00261905,3141.0,3139.7,0.13782536]
[1767558947770,0.00261905,3141.0,3139.9,0.13543261]
[1767558948067,0.14275379,3141.7,3139.9,0.13543261]
[1767558948666,0.14275379,3141.7,3140.0,0.13543261]
[1767558948866,0.14658546,3141.7,3140.1,0.13543261]
[1767558952072,0.00383167,3141.7,3140.1,0.13543261]
[1767558959675,0.00383167,3141.7,3140.1,0.29473261]
[1767558960171,0.14658546,3141.7,3140.1,0.1593]
[1767558993010,0.13312433,3141.5,3139.8,5.67963062]
[1767558993206,0.13312433,3141.5,3139.7,0.00239275]
[1767558994409,0.29235433,3141.5,3139.7,0.00239275]
[1767558994605,0.13363873,3141.4,3139.7,0.00239275]
[1767559000821,0.29286873,3141.4,3139.7,0.00239275]
[1767559001111,0.13363873,3141.3,3139.7,0.00239275]
[1767559004521,0.13363873,3141.1,3139.7,0.00239275]
[1767559021830,0.13363873,3141.1,3139.9,0.78729571]
[1767559035540,0.15923,3141.4,3139.9,0.78729571]
[1767559035747,0.15923,3141.4,3140.2,0.78729571]
[1767559038746,0.14467173,3141.5,3140.2,0.78729571]
[1767559049359,0.14467173,3141.5,3139.8,0.15931]
[1767559049565,0.93196744,3141.3,3139.8,0.15931]
[1767559050358,0.13619667,3141.2,3139.8,0.15931]
[1767559059673,0.140054,3140.6,3139.7,0.00239275]
[1767559060679,0.140054,3140.6,3139.0,7.45657946]
[1767559060680,0.140054,3140.3,3139.0,7.45657946]
[1767559061580,0.140054,3140.3,3139.1,0.78729571]
[1767559066683,0.140054,3140.3,3139.0,7.45995723]
[1767559068280,0.299324,3140.7,3139.0,7.59410481]
[1767559068584,0.140054,3140.7,3139.3,0.13414758]
[1767559068780,0.140054,3141.1,3139.3,0.13414758]
[1767559073883,0.140054,3141.0,3139.3,0.13414758]
[1767559079080,4.357054,3141.0,3139.3,0.13414758]
[1767559080085,0.140054,3140.9,3139.3,0.13414758]
[1767559083698,0.140054,3140.9,3139.3,5.16814758]
[1767559088298,0.15924,3141.2,3139.5,0.92784487]
[1767559088496,0.15924,3141.2,3139.6,0.29963809]
[1767559090700,0.76042536,3141.4,3139.8,0.14031809]
[1767559091798,0.90399746,3141.4,3139.8,0.14031809]
[1767559097411,0.90399746,3141.4,3139.8,0.29962809]
[1767559102515,0.90399746,3141.4,3139.9,0.15931]
[1767559113525,0.1435721,3141.4,3140.0,0.1593]
[1767559121531,0.1435721,3141.4,3140.2,0.15929]
[1767559121928,0.00383167,3141.7,3140.3,0.15929]
[1767559122129,0.14548874,3141.7,3140.3,0.15929]
[1767559122529,0.14548874,3141.7,3140.4,0.15928]
[1767559123232,0.14548874,3141.7,3140.0,0.14462361]
[1767559123434,0.14548874,3141.7,3140.3,0.78752678]
[1767559124333,0.14548874,3141.7,3140.6,0.15927]
[1767559126635,0.14548874,3141.7,3140.7,0.7867509]
[1767559131739,0.00383167,3141.7,3141.0,0.7867509]
[1767559137751,0.00383167,3141.7,3140.8,0.15926]
[1767559160373,0.92574103,3141.7,3140.3,5.67963062]
[1767559160674,0.13515846,3141.6,3140.2,0.15929]
[1767559161269,0.13515846,3141.6,3140.2,0.9460409]
[1767559179686,0.13515846,3141.6,3140.2,0.15929]
[1767559179879,0.13515846,3141.6,3140.2,0.9460409]
[1767559185793,0.13515846,3141.6,3140.2,0.15929]
[1767559189593,0.13515846,3141.6,3139.7,5.67963062]
[1767559189786,0.00383167,3141.7,3139.7,5.67963062]
[1767559189787,0.13785723,3141.5,3139.7,5.062]
[1767559190197,0.13785723,3141.5,3139.6,0.15932]
[1767559190398,0.13785723,3141.5,3139.7,5.062]
[1767559191498,0.13785723,3141.3,3139.7,5.062]
[1767559198204,0.13785723,3141.3,3139.6,0.15932]
[1767559198611,0.13785723,3141.3,3139.7,5.072]
[1767559198810,0.13785723,3141.3,3139.6,5.23132]
[1767559200308,0.13785723,3141.3,3139.6,5.37059617]
[1767559200905,0.13785723,3141.3,3139.8,0.13927617]
[1767559201108,0.14694688,3141.7,3139.9,0.13927617]
[1767559201304,0.14694688,3141.7,3140.1,0.13927617]
[1767559201500,0.00383167,3141.7,3140.3,0.13927617]
[1767559203014,0.00383167,3141.7,3140.3,0.29856617]
[1767559203220,0.00383167,3141.7,3140.4,0.13927617]
[1767559205508,0.00383167,3141.7,3140.4,0.29855617]
[1767559205714,0.00383167,3141.7,3140.5,0.13927617]
[1767559206524,0.00383167,3141.7,3140.5,0.29855617]
[1767559207023,0.00383167,3141.7,3140.6,0.29854617]
[1767559207210,0.00383167,3141.7,3140.7,0.13927617]
[1767559219531,0.74084138,3142.3,3140.7,0.13927617]
[1767559220531,0.74371596,3142.3,3140.7,0.13927617]
[1767559221732,0.74371596,3142.3,3140.7,0.29854617]
[1767559226142,0.88683117,3142.3,3140.7,0.29854617]
[1767559229938,0.88683117,3142.3,3140.8,0.15926]
[1767559233439,0.13277638,3142.2,3140.8,0.15926]
[1767559238747,0.13277638,3142.2,3140.9,0.15925]
[1767559246552,0.13277638,3142.2,3141.1,0.78654456]
[1767559251752,0.74371596,3142.3,3141.4,0.78654456]
[1767559251943,0.74371596,3142.3,3141.4,0.78991412]
[1767559252746,0.00287458,3142.3,3141.4,0.78991412]
[1767559254351,1.71485561,3144.3,3142.5,0.15917]
[1767559254556,18.30607986,3147.8,3142.5,0.15917]
[1767559254557,0.13537471,3144.4,3143.1,0.78654456]
[1767559254755,0.13537471,3144.2,3141.6,0.78654456]
[1767559254955,0.78654456,3144.3,3142.6,0.78654456]
[1767559255154,0.78654456,3144.4,3142.9,0.78654456]
[1767559255356,0.78991365,3144.4,3142.9,0.78654456]
[1767559255553,0.00336909,3144.4,3142.9,0.78654456]
[1767559255956,0.00336909,3144.4,3142.7,0.78654456]
[1767559256260,0.15909,3144.3,3142.5,0.78654456]
[1767559256452,0.78654456,3144.2,3142.5,0.78654456]
[1767559257057,0.13537471,3144.1,3142.5,0.78654456]
[1767559258755,0.13537471,3144.1,3142.4,0.78654456]
[1767559258963,0.13537471,3143.8,3142.1,5.064]
[1767559259162,0.13537471,3143.8,3142.2,0.78654456]
[1767559259859,0.13537471,3143.5,3141.6,0.24812437]
[1767559260055,0.13537471,3143.5,3141.8,0.78654456]
[1767559260456,0.13537471,3143.5,3142.1,0.78654456]
[1767559267664,0.13537471,3143.5,3141.8,0.78654456]
[1767559268065,0.14449369,3143.2,3141.5,0.15923]
[1767559268266,0.14449369,3142.9,3141.5,0.15923]
[1767559268862,0.14449369,3142.9,3141.6,0.78654456]
[1767559269770,0.14449369,3142.9,3141.5,0.15923]
[1767559269963,0.14449369,3142.9,3141.5,0.94577456]
[1767559274085,0.14449369,3142.9,3141.5,0.78654456]
[1767559274284,0.14449369,3142.9,3141.4,0.00336956]
[1767559276987,0.93103825,3142.9,3141.4,0.00336956]
[1767559277283,0.14449369,3142.8,3141.4,0.00336956]
[1767559279991,0.14449369,3142.5,3141.4,0.00336956]
[1767559280194,0.14449369,3142.2,3141.4,0.00336956]
[1767559280382,0.14708624,3142.2,3141.4,0.00336956]
[1767559289994,0.14708624,3142.2,3140.6,0.78654456]
[1767559290700,0.14429644,3142.1,3140.6,0.78654456]
[1767559291204,0.14429644,3142.1,3140.6,0.79036832]
[1767559297004,0.14429644,3142.1,3140.9,0.78654456]
[1767559303202,0.16178255,3142.2,3140.9,0.78654456]
[1767559306512,0.16178255,3142.2,3140.7,0.13117403]
[1767559313319,0.13661562,3142.4,3140.7,0.13117403]
[1767559314324,0.13661562,3142.1,3140.6,0.00382376]
[1767559314516,0.29582562,3141.9,3140.6,0.00382376]
[1767559314816,0.13661562,3141.8,3140.6,0.00382376]
[1767559320719,0.15921,3141.9,3140.6,0.14284042]
[1767559324425,0.00346712,3142.4,3140.8,0.13901666]
[1767559324426,0.16264712,3142.4,3140.8,0.13901666]
[1767559325423,0.29572696,3142.4,3140.8,0.13901666]
[1767559333025,0.29226984,3142.3,3140.8,0.13901666]
[1767559333225,0.13307984,3142.2,3140.8,0.13901666]
[1767559333430,0.13307984,3142.2,3140.6,0.00382376]
[1767559333828,0.13307984,3141.8,3140.6,0.00382376]
[1767559334128,0.15921,3141.8,3140.6,0.00382376]
[1767559334331,0.15922,3141.6,3140.6,0.00382376]
[1767559334527,6.78668462,3142.0,3140.6,0.00382376]
[1767559334731,6.78668462,3142.0,3140.1,5.67963062]
[1767559334732,0.98340757,3141.9,3140.0,0.13901666]
[1767559334931,0.15923,3141.4,3140.0,0.13901666]
[1767559335731,0.15923,3141.4,3140.0,0.14305473]
[1767559337938,0.13307984,3141.3,3140.0,0.00403807]
[1767559339534,0.13307984,3141.1,3140.0,0.00403807]
[1767559340738,0.15924,3141.2,3140.0,0.00403807]
[1767559368056,0.15922,3141.7,3140.6,0.78724101]
[1767559368455,0.15922,3141.7,3140.3,0.93144131]
[1767559368658,0.15922,3141.7,3140.3,0.1442003]
[1767559368856,0.29514668,3141.7,3140.3,0.1442003]
[1767559369055,0.94646101,3141.6,3140.0,0.79127908]
[1767559369260,0.29515668,3141.5,3140.0,0.00403807]
[1767559370868,0.78724101,3141.3,3140.0,0.00403807]
[1767559371065,1.08240769,3141.3,3140.0,0.00403807]
[1767559371968,0.13592668,3141.2,3140.0,0.00403807]
[1767559376169,0.29516668,3141.2,3140.0,0.00403807]
[1767559379373,0.94649101,3141.0,3140.0,0.00403807]
[1767559380472,0.15925,3141.0,3140.0,0.00403807]
[1767559381076,4.206,3141.3,3140.1,0.78724101]
[1767559382476,4.206,3141.3,3140.0,0.00403807]
[1767559382772,4.206,3141.3,3140.1,0.78724101]
[1767559383073,0.30337105,3141.5,3140.1,0.78724101]
[1767559383275,4.206,3141.4,3140.1,0.78724101]
[1767559385970,0.30337105,3141.5,3140.1,0.78724101]
[1767559386169,4.207,3141.4,3140.1,0.78724101]
[1767559386582,0.30337105,3141.5,3140.1,0.78724101]
[1767559386875,4.207,3141.4,3140.1,0.78724101]
[1767559397782,4.36623,3141.4,3140.0,0.00403807]
[1767559398482,0.30338105,3141.3,3140.0,0.00403807]
[1767559414599,0.13366841,3141.2,3140.0,0.00403807]
[1767559441732,0.29246228,3140.8,3139.2,5.67963062]
[1767559441926,0.13320228,3140.7,3139.2,5.67963062]
[1767559442123,0.13320228,3140.7,3139.0,0.15935]
[1767559442931,0.13320228,3140.7,3139.0,0.16177254]
[1767559443334,0.13320228,3140.7,3139.0,0.30536258]
[1767559444231,0.15926,3140.8,3139.1,0.14359004]
[1767559444437,0.15926,3140.8,3139.3,0.14359004]
[1767559445232,3.847,3141.1,3139.3,0.14359004]
[1767559451041,3.98020228,3141.1,3139.3,0.14359004]
[1767559459452,0.13320228,3141.0,3139.3,0.14359004]
[1767559460454,4.205,3140.9,3139.3,0.14359004]
[1767559462260,0.13320228,3141.0,3139.3,0.14359004]
[1767559462459,4.33820228,3141.0,3139.3,0.14359004]
[1767559463259,0.13320228,3141.0,3139.3,0.14359004]
[1767559463461,4.33820228,3141.0,3139.3,0.14359004]
[1767559466456,0.13320228,3140.9,3139.3,0.14359004]
[1767559475664,0.13967005,3140.8,3139.3,0.14359004]
[1767559476061,0.13967005,3140.7,3139.3,0.14359004]
[1767559490785,0.13967005,3140.7,3139.3,0.93101856]
[1767559496993,0.15926,3140.8,3139.3,0.93101856]
[1767559501089,0.15926,3140.8,3139.4,0.13525301]
[1767559502094,0.13967005,3141.1,3139.7,0.92268153]
[1767559502394,0.15924,3141.3,3140.1,0.13525301]
[1767559502592,0.29327225,3141.3,3139.7,0.13525301]
[1767559503683,0.78742852,3140.8,3139.7,0.13525301]
[1767559504091,0.15925,3141.0,3139.7,0.13525301]
[1767559506497,0.94668852,3140.8,3139.3,0.13525301]
[1767559506805,0.78742852,3140.1,3139.0,0.00242254]
[1767559507003,0.0028275,3140.1,3139.0,0.00242254]
[1767559514115,0.0028275,3140.1,3139.0,0.13767555]
[1767559514412,0.0028275,3140.1,3139.2,0.13525301]
[1767559523715,0.0028275,3140.1,3139.0,0.00242254]
[1767559525014,0.1621275,3140.1,3139.0,0.00242254]
[1767559532525,0.1621275,3140.1,3139.0,0.14153952]
[1767559536329,0.1621275,3140.1,3139.0,0.00242254]
[1767559542936,0.30197385,3140.1,3139.0,0.00242254]
[1767559543138,0.13984635,3140.0,3139.0,0.00242254]
[1767559543638,0.29915635,3140.0,3139.0,0.00242254]
[1767559544935,1.08658487,3140.0,3139.0,0.00242254]
[1767559548834,0.15931,3140.0,3139.0,0.00242254]
[1767559563246,4.204,3139.9,3139.0,0.00242254]
[1767559570545,4.36331,3139.9,3139.0,0.00242254]
[1767559593665,0.15931,3139.9,3139.0,0.00242254]
[1767559593867,4.215,3139.8,3139.0,0.00242254]
[1767559602583,0.15931,3139.9,3139.0,0.00242254]
[1767559602778,4.219,3139.8,3139.0,0.00242254]
[1767559608289,0.15931,3139.9,3139.0,0.00242254]
[1767559608497,4.221,3139.8,3139.0,0.00242254]
[1767559628308,0.15931,3139.9,3139.0,0.00242254]
[1767559628608,4.229,3139.8,3139.0,0.00242254]
[1767559635619,0.15931,3139.9,3139.0,0.00242254]
[1767559635820,4.232,3139.8,3139.0,0.00242254]
[1767559647231,4.232,3139.8,3138.2,0.15939]
[1767559647432,4.232,3139.8,3138.3,0.78786794]
[1767559648232,4.232,3139.8,3138.3,0.79158893]
[1767559648635,4.37405628,3139.8,3138.3,0.79158893]
[1767559648831,5.16192422,3139.8,3138.3,0.79158893]
[1767559649027,5.32123422,3139.8,3138.3,0.00372099]
[1767559649328,0.78786794,3139.5,3138.3,0.00372099]
[1767559656037,0.15932,3139.6,3138.3,0.00372099]
[1767559656540,4.238,3139.5,3138.3,0.93092956]
[1767559657038,4.238,3139.5,3138.4,0.78786794]
[1767559657334,0.15932,3139.6,3138.7,0.78786794]
[1767559661739,0.15932,3139.6,3138.3,0.14306162]
[1767559661940,0.15932,3139.6,3138.6,0.78786794]
[1767559663041,0.0028275,3140.1,3138.6,0.78786794]
[1767559663233,0.0028275,3140.1,3138.7,0.13934063]
[1767559663639,4.241,3140.0,3138.7,0.13934063]
[1767559663837,0.0028275,3140.1,3138.9,0.78786794]
[1767559664046,4.241,3140.0,3138.9,0.78786794]
[1767559665036,0.0028275,3140.1,3139.2,0.92720857]
[1767559667441,0.0028275,3140.1,3139.3,0.13934063]
[1767559669534,0.15927,3140.7,3139.5,0.92720857]
[1767559669739,4.40027,3140.7,3139.5,0.92720857]
[1767559670538,4.4025952,3140.7,3139.5,0.92720857]
[1767559671249,0.1615952,3140.7,3139.5,0.92720857]
[1767559671451,4.4025952,3140.7,3139.5,0.92720857]
[1767559671753,0.0023252,3140.7,3139.8,0.78786794]
[1767559671956,0.0023252,3140.7,3139.8,0.92720857]
[1767559672545,0.0023252,3140.7,3139.8,0.13934063]
[1767559696661,0.0023252,3140.7,3139.3,0.137942]
[1767559696865,0.1615952,3140.7,3139.3,0.137942]
[1767559714192,0.13143628,3140.6,3138.9,0.13680891]
[1767559714482,0.13143628,3140.5,3138.9,0.13680891]
[1767559716283,0.15927,3140.6,3138.9,0.13680891]
[1767559724794,0.0023252,3140.7,3139.2,0.13739215]
[1767559732498,0.0023252,3140.7,3139.4,0.92481088]
[1767559739809,0.0023252,3140.7,3139.5,0.13739215]
[1767559801147,4.233,3141.2,3139.5,0.13739215]
[1767559802053,4.23641528,3141.2,3139.5,0.13739215]
[1767559803052,0.00341528,3141.2,3139.5,0.13739215]
[1767559804652,0.00341528,3141.2,3139.5,0.29672215]
[1767559804953,0.00341528,3141.2,3139.6,0.13875695]
[1767559810861,0.00341528,3141.2,3139.6,0.29807695]
[1767559811051,0.00341528,3141.2,3139.7,0.13875695]
[1767559816670,0.1592,3142.0,3140.4,0.13875695]
[1767559817676,0.16269139,3142.0,3140.4,0.13875695]
[1767559830991,4.233,3141.9,3140.4,0.13875695]